[Event "Live Chess"]
[Site "Chess.com"]
[Date "2024.06.01"]
[Round "-"]
[White "DoctorMantisTobogganMD"]
[Black "NottheBishopSacrifice"]
[Result "1/2-1/2"]
[WhiteElo "2177"]
[BlackElo "2257"]
[TimeControl "300"]
[EndTime "13:44:30 PDT"]
[Termination "Game drawn by repetition"]

1. e4 {[%clk 0:04:58.8]} 1... c6 {[%clk 0:04:58.9]} 2. Nc3 {[%clk 0:04:39.6]}
2... d5 {[%clk 0:04:58.8]} 3. Nf3 {[%clk 0:04:39.1]} 3... dxe4 {[%clk
0:04:56.4]} 4. Nxe4 {[%clk 0:04:39]} 4... Nf6 {[%clk 0:04:55.5]} 5. Qe2 {[%clk
0:04:30.1]} 5... Nxe4 {[%clk 0:04:53.9]} 6. Qxe4 {[%clk 0:04:30]} 6... Nd7
{[%clk 0:04:52.6]} 7. Bc4 {[%clk 0:04:28.8]} 7... Nf6 {[%clk 0:04:52.2]} 8. Ne5
{[%clk 0:04:27.8]} 8... e6 {[%clk 0:04:51.9]} 9. Qe2 {[%clk 0:04:26.5]} 9... b5
{[%clk 0:04:51.5]} 10. Bb3 {[%clk 0:04:25.4]} 10... Qc7 {[%clk 0:04:50.1]} 11.
O-O {[%clk 0:04:24]} 11... Bd6 {[%clk 0:04:49.2]} 12. Re1 {[%clk 0:04:23]} 12...
O-O {[%clk 0:04:48]} 13. d4 {[%clk 0:04:22.2]} 13... a5 {[%clk 0:04:45.3]} 14.
c3 {[%clk 0:04:19.4]} 14... c5 {[%clk 0:04:44]} 15. dxc5 {[%clk 0:04:15.8]}
15... Qxc5 {[%clk 0:04:43.9]} 16. Bg5 {[%clk 0:03:59.1]} 16... Bxe5 {[%clk
0:04:37.4]} 17. Qxe5 {[%clk 0:03:56.9]} 17... Qxe5 {[%clk 0:04:37.3]} 18. Rxe5
{[%clk 0:03:56.1]} 18... Nd7 {[%clk 0:04:36.7]} 19. Rxb5 {[%clk 0:03:53.2]}
19... a4 {[%clk 0:04:32.2]} 20. Bd1 {[%clk 0:03:47.4]} 20... Ba6 {[%clk
0:04:31.4]} 21. Rb4 {[%clk 0:03:43.6]} 21... a3 {[%clk 0:04:25.8]} 22. bxa3
{[%clk 0:03:29.9]} 22... Rfc8 {[%clk 0:04:22.6]} 23. Be3 {[%clk 0:03:19.9]}
23... Rxc3 {[%clk 0:04:19.6]} 24. Ba4 {[%clk 0:03:18.5]} 24... Nc5 {[%clk
0:04:12.1]} 25. Bc6 {[%clk 0:03:09.5]} 25... Rc8 {[%clk 0:04:07.3]} 26. Bf3
{[%clk 0:03:05.2]} 26... Nd3 {[%clk 0:03:52.5]} 27. Rb6 {[%clk 0:02:53.9]} 27...
Bc4 {[%clk 0:03:48.7]} 28. a4 {[%clk 0:02:21.1]} 28... h6 {[%clk 0:03:44.2]} 29.
h3 {[%clk 0:02:15.4]} 29... Ne5 {[%clk 0:03:43.1]} 30. Be4 {[%clk 0:02:07.1]}
30... Bd3 {[%clk 0:03:40]} 31. Bxd3 {[%clk 0:02:05.7]} 31... Nxd3 {[%clk
0:03:39.9]} 32. Rb3 {[%clk 0:02:01.6]} 32... Ne5 {[%clk 0:03:29.3]} 33. Rxc3
{[%clk 0:02:00.2]} 33... Rxc3 {[%clk 0:03:27.8]} 34. a5 {[%clk 0:01:56.5]} 34...
Ra3 {[%clk 0:03:26.1]} 35. Bb6 {[%clk 0:01:55.6]} 35... Nc4 {[%clk 0:03:24.6]}
36. Rc1 {[%clk 0:01:52.2]} 36... Nxa5 {[%clk 0:03:22.8]} 37. Bxa5 {[%clk
0:01:50.1]} 37... Rxa5 {[%clk 0:03:21.1]} 38. Ra1 {[%clk 0:01:49.7]} 38... Ra3
{[%clk 0:03:20.3]} 39. Kf1 {[%clk 0:01:49]} 39... g5 {[%clk 0:03:19.9]} 40. Ke2
{[%clk 0:01:48.7]} 40... Kg7 {[%clk 0:03:18.4]} 41. Kd2 {[%clk 0:01:47.9]} 41...
Kg6 {[%clk 0:03:17.8]} 42. Kc2 {[%clk 0:01:47.3]} 42... Kf5 {[%clk 0:03:17.2]}
43. Kb2 {[%clk 0:01:46.8]} 43... Ra8 {[%clk 0:03:16]} 44. a4 {[%clk 0:01:46.2]}
44... Ke4 {[%clk 0:03:15]} 45. a5 {[%clk 0:01:44.5]} 45... Kd3 {[%clk
0:03:13.4]} 46. a6 {[%clk 0:01:42.1]} 46... Ke2 {[%clk 0:03:12.9]} 47. Kb3
{[%clk 0:01:37.9]} 47... Kxf2 {[%clk 0:03:11.7]} 48. Ra2+ {[%clk 0:01:37.4]}
48... Kg3 {[%clk 0:03:10.2]} 49. Kc4 {[%clk 0:01:36.2]} 49... f5 {[%clk
0:03:08.7]} 50. a7 {[%clk 0:01:34.8]} 50... e5 {[%clk 0:03:07.3]} 51. Kd5 {[%clk
0:01:31.7]} 51... e4 {[%clk 0:03:06.6]} 52. Kd4 {[%clk 0:01:30.8]} 52... h5
{[%clk 0:03:04.3]} 53. Ke3 {[%clk 0:01:27.7]} 53... g4 {[%clk 0:03:00.1]} 54.
hxg4 {[%clk 0:01:25.1]} 54... hxg4 {[%clk 0:03:00]} 55. Kd4 {[%clk 0:01:21.5]}
55... Rd8+ {[%clk 0:02:21.4]} 56. Ke3 {[%clk 0:01:14.2]} 56... Ra8 {[%clk
0:02:19.1]} 57. Kd4 {[%clk 0:01:13.1]} 57... Kf4 {[%clk 0:02:16.9]} 58. Rf2+
{[%clk 0:01:07]} 58... Kg5 {[%clk 0:02:15.6]} 59. Ra2 {[%clk 0:01:05.5]} 59...
g3 {[%clk 0:02:14.7]} 60. Ke3 {[%clk 0:01:03.9]} 60... Kg4 {[%clk 0:02:13.7]}
61. Ra4 {[%clk 0:01:00.8]} 61... Kg5 {[%clk 0:02:08.6]} 62. Ra5 {[%clk
0:00:57.6]} 62... Kf6 {[%clk 0:02:03.4]} 63. Ra6+ {[%clk 0:00:56]} 63... Ke5
{[%clk 0:02:02.1]} 64. Ra5+ {[%clk 0:00:55.5]} 64... Ke6 {[%clk 0:02:01]} 65.
Kf4 {[%clk 0:00:54.5]} 65... Kd6 {[%clk 0:01:53]} 66. Kxg3 {[%clk 0:00:49.7]}
66... Ke6 {[%clk 0:01:46.7]} 67. Kf4 {[%clk 0:00:49]} 67... Kd6 {[%clk
0:01:44.8]} 68. Ra3 {[%clk 0:00:46.3]} 68... Ke6 {[%clk 0:01:41.3]} 69. g3
{[%clk 0:00:45.8]} 69... Kf6 {[%clk 0:01:39.8]} 70. Ra6+ {[%clk 0:00:44.9]}
70... Kg7 {[%clk 0:01:38.7]} 71. Kxf5 {[%clk 0:00:43.8]} 71... e3 {[%clk
0:01:37.9]} 72. Re6 {[%clk 0:00:39.7]} 72... Rxa7 {[%clk 0:01:36.1]} 73. Rxe3
{[%clk 0:00:39.3]} 73... Ra5+ {[%clk 0:01:35.2]} 74. Kf4 {[%clk 0:00:38.7]}
74... Ra4+ {[%clk 0:01:34.1]} 75. Kf3 {[%clk 0:00:38.6]} 75... Kg6 {[%clk
0:01:32.7]} 76. g4 {[%clk 0:00:38.5]} 76... Kg5 {[%clk 0:01:30.7]} 77. Re5+
{[%clk 0:00:37.9]} 77... Kf6 {[%clk 0:01:29.6]} 78. Re4 {[%clk 0:00:36.9]} 78...
Ra1 {[%clk 0:01:27.4]} 79. Kg3 {[%clk 0:00:36.2]} 79... Kg5 {[%clk 0:01:25.7]}
80. Re5+ {[%clk 0:00:35.3]} 80... Kg6 {[%clk 0:01:24.7]} 81. Rf5 {[%clk
0:00:34.8]} 81... Ra3+ {[%clk 0:01:22.3]} 82. Kf4 {[%clk 0:00:34.3]} 82... Ra4+
{[%clk 0:01:20.2]} 83. Kg3 {[%clk 0:00:33.9]} 83... Ra3+ {[%clk 0:01:18.8]} 84.
Kf4 {[%clk 0:00:33.5]} 84... Ra1 {[%clk 0:01:18.3]} 85. Kg3 {[%clk 0:00:32.8]}
85... Rg1+ {[%clk 0:01:16.4]} 86. Kf4 {[%clk 0:00:30.8]} 86... Rf1+ {[%clk
0:01:13.6]} 87. Kg3 {[%clk 0:00:30]} 87... Rh1 {[%clk 0:01:13.3]} 88. Kf4 {[%clk
0:00:29.2]} 88... Rh3 {[%clk 0:01:11.5]} 89. Rb5 {[%clk 0:00:27.5]} 89... Rh1
{[%clk 0:01:06.4]} 90. Rb6+ {[%clk 0:00:26.9]} 90... Kg7 {[%clk 0:01:05.7]} 91.
Kg5 {[%clk 0:00:26.2]} 91... Rc1 {[%clk 0:01:03.1]} 92. Rb7+ {[%clk 0:00:25.5]}
92... Kg8 {[%clk 0:01:02]} 93. Kh6 {[%clk 0:00:24.3]} 93... Rc6+ {[%clk
0:00:59.9]} 94. Kh5 {[%clk 0:00:23.2]} 94... Rd6 {[%clk 0:00:57.8]} 95. g5
{[%clk 0:00:22.4]} 95... Rc6 {[%clk 0:00:56.6]} 96. g6 {[%clk 0:00:20.9]} 96...
Rc1 {[%clk 0:00:52.7]} 97. Kh6 {[%clk 0:00:19.6]} 97... Rh1+ {[%clk 0:00:51.4]}
98. Kg5 {[%clk 0:00:19.3]} 98... Rh2 {[%clk 0:00:49.3]} 99. Kf6 {[%clk
0:00:18.5]} 99... Rf2+ {[%clk 0:00:48.1]} 100. Kg5 {[%clk 0:00:18.2]} 100... Rf1
{[%clk 0:00:45.5]} 101. Kh6 {[%clk 0:00:17.7]} 101... Rh1+ {[%clk 0:00:44.4]}
102. Kg5 {[%clk 0:00:17.4]} 102... Rh3 {[%clk 0:00:43.4]} 103. Kf6 {[%clk
0:00:16.8]} 103... Rf3+ {[%clk 0:00:42.4]} 104. Kg5 {[%clk 0:00:16.6]} 104...
Rf2 {[%clk 0:00:41.8]} 105. Kh6 {[%clk 0:00:16.1]} 105... Rh2+ {[%clk
0:00:41.1]} 106. Kg5 {[%clk 0:00:15.9]} 106... Rh1 {[%clk 0:00:40.2]} 107. Kf6
{[%clk 0:00:15.1]} 107... Rf1+ {[%clk 0:00:39.6]} 108. Kg5 {[%clk 0:00:14.8]}
108... Rf3 {[%clk 0:00:31.7]} 109. Kh6 {[%clk 0:00:14.1]} 109... Rh3+ {[%clk
0:00:30.8]} 110. Kg5 {[%clk 0:00:13.8]} 110... Rh1 {[%clk 0:00:29.8]} 111. Kf6
{[%clk 0:00:13.1]} 111... Rf1+ {[%clk 0:00:28.7]} 112. Kg5 {[%clk 0:00:12.8]}
112... Rf2 {[%clk 0:00:28]} 113. Kh6 {[%clk 0:00:12.3]} 113... Rh2+ {[%clk
0:00:27]} 114. Kg5 {[%clk 0:00:12]} 114... Rh3 {[%clk 0:00:26.3]} 115. Kf6
{[%clk 0:00:11.5]} 115... Rf3+ {[%clk 0:00:25.4]} 116. Kg5 {[%clk 0:00:11.2]}
116... Rf2 {[%clk 0:00:24.8]} 1/2-1/2

[Event "Live Chess"]
[Site "Chess.com"]
[Date "2024.06.01"]
[Round "-"]
[White "ProfPoisson"]
[Black "WelshTiger"]
[Result "0-1"]
[WhiteElo "1292"]
[BlackElo "2531"]
[TimeControl "300"]
[EndTime "13:44:30 PDT"]
[Termination "WelshTiger won by checkmate"]

1. e4 {[%clk 0:04:51.1]} 1... c5 {[%clk 0:04:58.6]} 2. Nc3 {[%clk 0:04:47.3]}
2... e6 {[%clk 0:04:56.9]} 3. f4 {[%clk 0:04:46]} 3... Nc6 {[%clk 0:04:54]} 4.
Bb5 {[%clk 0:04:43.9]} 4... Nd4 {[%clk 0:04:52.6]} 5. Nf3 {[%clk 0:04:39.7]}
5... Nxb5 {[%clk 0:04:46.7]} 6. Nxb5 {[%clk 0:04:37.4]} 6... d6 {[%clk
0:04:44.9]} 7. d4 {[%clk 0:04:33.5]} 7... a6 {[%clk 0:04:43.8]} 8. Nc3 {[%clk
0:04:30]} 8... cxd4 {[%clk 0:04:43.1]} 9. Qxd4 {[%clk 0:04:27.6]} 9... Qc7
{[%clk 0:04:38.6]} 10. O-O {[%clk 0:04:23]} 10... Nf6 {[%clk 0:04:37.4]} 11. e5
{[%clk 0:04:15]} 11... dxe5 {[%clk 0:04:36.6]} 12. fxe5 {[%clk 0:04:09.1]} 12...
Bc5 {[%clk 0:04:35.6]} 13. exf6 {[%clk 0:04:01.2]} 13... gxf6 {[%clk 0:04:34.3]}
14. Qxc5 {[%clk 0:03:47.4]} 14... Qxc5+ {[%clk 0:04:32.9]} 15. Kh1 {[%clk
0:03:46.7]} 15... b5 {[%clk 0:03:59.3]} 16. Ne4 {[%clk 0:03:42.5]} 16... Qe7
{[%clk 0:03:57.6]} 17. Nd4 {[%clk 0:03:33.3]} 17... f5 {[%clk 0:03:51.8]} 18.
Bg5 {[%clk 0:03:28.5]} 18... fxe4 {[%clk 0:03:47.3]} 19. Bxe7 {[%clk 0:03:26.3]}
19... Kxe7 {[%clk 0:03:47.2]} 20. Rad1 {[%clk 0:03:17.9]} 20... Bb7 {[%clk
0:03:43.2]} 21. Nb3 {[%clk 0:03:07.7]} 21... Rac8 {[%clk 0:03:40]} 22. Na5
{[%clk 0:03:02.3]} 22... Bd5 {[%clk 0:03:34.5]} 23. b3 {[%clk 0:02:57.1]} 23...
Rxc2 {[%clk 0:03:32.5]} 24. Rc1 {[%clk 0:02:36.7]} 24... Rhc8 {[%clk 0:03:27.3]}
25. Rcd1 {[%clk 0:02:26.4]} 25... e3 {[%clk 0:03:21]} 26. Rfe1 {[%clk
0:02:23.5]} 26... Bxg2+ {[%clk 0:03:00.4]} 27. Kg1 {[%clk 0:02:19.6]} 27... Bf3
{[%clk 0:02:59.7]} 28. Rd3 {[%clk 0:02:10.2]} 28... Rg8+ {[%clk 0:02:57.6]} 29.
Kf1 {[%clk 0:02:05.1]} 29... Rf2# {[%clk 0:02:56.5]} 0-1

[Event "Live Chess"]
[Site "Chess.com"]
[Date "2024.06.01"]
[Round "-"]
[White "agamilewska"]
[Black "Sweet-O"]
[Result "1/2-1/2"]
[WhiteElo "1762"]
[BlackElo "1549"]
[TimeControl "300"]
[EndTime "13:44:46 PDT"]
[Termination "Game drawn - insufficient material"]

1. d4 {[%clk 0:04:58]} 1... c5 {[%clk 0:04:58.1]} 2. dxc5 {[%clk 0:04:56.6]}
2... e6 {[%clk 0:04:54.6]} 3. e4 {[%clk 0:04:55.8]} 3... Bxc5 {[%clk 0:04:52.4]}
4. Nf3 {[%clk 0:04:55.3]} 4... Qb6 {[%clk 0:04:50.4]} 5. Qd2 {[%clk 0:04:48.9]}
5... a5 {[%clk 0:04:14.6]} 6. Bd3 {[%clk 0:04:46.7]} 6... Nc6 {[%clk 0:04:10.3]}
7. O-O {[%clk 0:04:43.8]} 7... h5 {[%clk 0:04:08]} 8. Nc3 {[%clk 0:04:43]} 8...
Bb4 {[%clk 0:04:01.7]} 9. a3 {[%clk 0:04:41.3]} 9... Bd6 {[%clk 0:03:58]} 10.
Qg5 {[%clk 0:04:34.1]} 10... g6 {[%clk 0:03:27.8]} 11. e5 {[%clk 0:04:31.7]}
11... Be7 {[%clk 0:03:26.1]} 12. Qe3 {[%clk 0:04:25.9]} 12... Qd8 {[%clk
0:03:16]} 13. Ne4 {[%clk 0:04:13]} 13... h4 {[%clk 0:03:13.8]} 14. h3 {[%clk
0:04:11.2]} 14... b6 {[%clk 0:02:53.1]} 15. Nd6+ {[%clk 0:04:08.7]} 15... Bxd6
{[%clk 0:02:17.8]} 16. exd6 {[%clk 0:04:08.6]} 16... Nf6 {[%clk 0:02:09.3]} 17.
Bb5 {[%clk 0:04:06.6]} 17... Ba6 {[%clk 0:02:00.9]} 18. Bxc6 {[%clk 0:04:03.6]}
18... dxc6 {[%clk 0:01:58.8]} 19. Rd1 {[%clk 0:04:02.3]} 19... Nd5 {[%clk
0:01:53.7]} 20. Qe5 {[%clk 0:03:55.1]} 20... Qf6 {[%clk 0:01:49.2]} 21. d7+
{[%clk 0:03:39.8]} 21... Ke7 {[%clk 0:01:37.9]} 22. Qxf6+ {[%clk 0:03:35]} 22...
Nxf6 {[%clk 0:01:37]} 23. Ne5 {[%clk 0:03:32.4]} 23... Bb7 {[%clk 0:01:31.1]}
24. Bg5 {[%clk 0:03:31]} 24... Rad8 {[%clk 0:01:16.9]} 25. Bxf6+ {[%clk
0:03:23.8]} 25... Kxf6 {[%clk 0:01:16.8]} 26. f4 {[%clk 0:03:22.8]} 26... g5
{[%clk 0:01:13.5]} 27. Ng4+ {[%clk 0:03:14.9]} 27... Ke7 {[%clk 0:01:09.8]} 28.
fxg5 {[%clk 0:03:13]} 28... Rxd7 {[%clk 0:01:06.7]} 29. Rxd7+ {[%clk 0:03:12.4]}
29... Kxd7 {[%clk 0:01:06.6]} 30. Rd1+ {[%clk 0:03:10.9]} 30... Ke7 {[%clk
0:01:05.5]} 31. b4 {[%clk 0:03:06.2]} 31... axb4 {[%clk 0:01:02.8]} 32. axb4
{[%clk 0:03:05.2]} 32... Rd8 {[%clk 0:01:00.2]} 33. Rxd8 {[%clk 0:03:03.3]}
33... Kxd8 {[%clk 0:01:00.1]} 34. Ne5 {[%clk 0:02:59.8]} 34... Ke7 {[%clk
0:00:58.6]} 35. Kf2 {[%clk 0:02:55.4]} 35... f6 {[%clk 0:00:57.2]} 36. Ng6+
{[%clk 0:02:49.8]} 36... Kf7 {[%clk 0:00:52.6]} 37. Nxh4 {[%clk 0:02:49.2]}
37... fxg5 {[%clk 0:00:52.2]} 38. Nf3 {[%clk 0:02:48.6]} 38... Kf6 {[%clk
0:00:49.4]} 39. Ke3 {[%clk 0:02:45.5]} 39... c5 {[%clk 0:00:48.4]} 40. bxc5
{[%clk 0:02:44]} 40... bxc5 {[%clk 0:00:46]} 41. g3 {[%clk 0:02:40.1]} 41... Kf5
{[%clk 0:00:41.7]} 42. Nd2 {[%clk 0:02:37]} 42... g4 {[%clk 0:00:40.2]} 43. h4
{[%clk 0:02:35.5]} 43... e5 {[%clk 0:00:34.2]} 44. Nc4 {[%clk 0:02:34.7]} 44...
Bd5 {[%clk 0:00:31.1]} 45. Nd6+ {[%clk 0:02:32.3]} 45... Ke6 {[%clk 0:00:29.7]}
46. Nb5 {[%clk 0:02:30.1]} 46... Ba2 {[%clk 0:00:28.3]} 47. Ke4 {[%clk
0:02:22.4]} 47... Bb1 {[%clk 0:00:26.9]} 48. Nc7+ {[%clk 0:02:14.1]} 48... Kf6
{[%clk 0:00:24.9]} 49. Nd5+ {[%clk 0:02:10]} 49... Ke6 {[%clk 0:00:23.8]} 50.
Ne3 {[%clk 0:02:08.7]} 50... c4 {[%clk 0:00:21.2]} 51. Nxc4 {[%clk 0:01:59.8]}
51... Bxc2+ {[%clk 0:00:18.7]} 52. Ke3 {[%clk 0:01:58.9]} 52... Bf5 {[%clk
0:00:16.6]} 53. Nb6 {[%clk 0:01:51.6]} 53... Kf6 {[%clk 0:00:16]} 54. Nc4 {[%clk
0:01:48]} 54... Ke6 {[%clk 0:00:14.9]} 55. h5 {[%clk 0:01:46.3]} 55... Kd5
{[%clk 0:00:13.3]} 56. Nd2 {[%clk 0:01:44.1]} 56... Ke6 {[%clk 0:00:12]} 57. Ne4
{[%clk 0:01:42.2]} 57... Bxe4 {[%clk 0:00:10.4]} 58. Kxe4 {[%clk 0:01:42.1]}
58... Kf6 {[%clk 0:00:09.3]} 59. h6 {[%clk 0:01:11]} 59... Kg6 {[%clk
0:00:05.5]} 60. h7 {[%clk 0:01:09.1]} 60... Kxh7 {[%clk 0:00:04.8]} 61. Kf5
{[%clk 0:01:00.1]} 61... Kh6 {[%clk 0:00:04.7]} 62. Kxg4 {[%clk 0:00:59.3]}
62... Kg6 {[%clk 0:00:03.6]} 63. Kf3 {[%clk 0:00:57.2]} 63... Kf6 {[%clk
0:00:03.5]} 64. Ke4 {[%clk 0:00:53.9]} 64... Ke6 {[%clk 0:00:02.2]} 65. g4
{[%clk 0:00:52.7]} 65... Kf6 {[%clk 0:00:02.1]} 66. Ke3 {[%clk 0:00:45.3]} 66...
Kg5 {[%clk 0:00:02]} 67. Ke4 {[%clk 0:00:44.8]} 67... Kxg4 {[%clk 0:00:01]} 68.
Kxe5 {[%clk 0:00:42.6]} 1/2-1/2

[Event "Live Chess"]
[Site "Chess.com"]
[Date "2024.06.01"]
[Round "-"]
[White "Silverback7829"]
[Black "Frankie_Badacsonyi"]
[Result "0-1"]
[WhiteElo "971"]
[BlackElo "2440"]
[TimeControl "300"]
[EndTime "13:44:47 PDT"]
[Termination "Frankie_Badacsonyi won by checkmate"]

1. d4 {[%clk 0:04:57.8]} 1... e6 {[%clk 0:04:56.6]} 2. Nf3 {[%clk 0:04:56.2]}
2... d5 {[%clk 0:04:54.9]} 3. Nc3 {[%clk 0:04:54]} 3... Nf6 {[%clk 0:04:53.3]}
4. Be3 {[%clk 0:04:49.4]} 4... Be7 {[%clk 0:04:50.3]} 5. Bg5 {[%clk 0:04:45.6]}
5... O-O {[%clk 0:04:49.2]} 6. Ne5 {[%clk 0:04:36.9]} 6... Nbd7 {[%clk
0:04:46.3]} 7. Nxd7 {[%clk 0:04:32.2]} 7... Bxd7 {[%clk 0:04:46.2]} 8. e3 {[%clk
0:04:27.3]} 8... c5 {[%clk 0:04:43.8]} 9. dxc5 {[%clk 0:04:25.4]} 9... Bxc5
{[%clk 0:04:43.7]} 10. Bd3 {[%clk 0:04:20.5]} 10... h6 {[%clk 0:04:41.7]} 11.
Bxf6 {[%clk 0:04:16.6]} 11... Qxf6 {[%clk 0:04:41.6]} 12. O-O {[%clk 0:04:13.8]}
12... Rac8 {[%clk 0:04:29.3]} 13. Qe2 {[%clk 0:04:09.1]} 13... Bb4 {[%clk
0:04:20.8]} 14. Nd1 {[%clk 0:04:01.3]} 14... Qe5 {[%clk 0:04:17.1]} 15. c3
{[%clk 0:03:49.3]} 15... Bd6 {[%clk 0:04:12.8]} 16. a3 {[%clk 0:03:41.7]} 16...
Qxh2# {[%clk 0:04:11.4]} 0-1

[Event "Live Chess"]
[Site "Chess.com"]
[Date "2024.06.01"]
[Round "-"]
[White "Dhaydon19"]
[Black "LL220284LL"]
[Result "1-0"]
[WhiteElo "2679"]
[BlackElo "2555"]
[TimeControl "300"]
[EndTime "13:44:56 PDT"]
[Termination "Dhaydon19 won by resignation"]

1. Nf3 {[%clk 0:04:57.7]} 1... d6 {[%clk 0:04:58.7]} 2. d4 {[%clk 0:04:55.9]}
2... g6 {[%clk 0:04:58.1]} 3. g3 {[%clk 0:04:55.1]} 3... Bg7 {[%clk 0:04:57.7]}
4. Bg2 {[%clk 0:04:54.8]} 4... Nd7 {[%clk 0:04:57.1]} 5. O-O {[%clk 0:04:54.5]}
5... Ngf6 {[%clk 0:04:56.7]} 6. c4 {[%clk 0:04:53.9]} 6... O-O {[%clk
0:04:56.1]} 7. Nc3 {[%clk 0:04:53.6]} 7... Rb8 {[%clk 0:04:54.5]} 8. d5 {[%clk
0:04:53]} 8... e6 {[%clk 0:04:52.5]} 9. dxe6 {[%clk 0:04:51.7]} 9... fxe6 {[%clk
0:04:52.1]} 10. Nd4 {[%clk 0:04:47.5]} 10... Qe8 {[%clk 0:04:49]} 11. Ncb5
{[%clk 0:04:46]} 11... Nc5 {[%clk 0:04:41.6]} 12. Nxc7 {[%clk 0:04:43.5]} 12...
Qd7 {[%clk 0:04:36.9]} 13. Ncxe6 {[%clk 0:04:41.9]} 13... Nxe6 {[%clk
0:04:34.7]} 14. Bh3 {[%clk 0:04:37.6]} 14... Qe7 {[%clk 0:04:26.5]} 15. Nb5
{[%clk 0:04:31.6]} 15... Rd8 {[%clk 0:04:17.6]} 16. Nxa7 {[%clk 0:04:29.3]}
16... Bd7 {[%clk 0:04:16.6]} 17. Nb5 {[%clk 0:04:26.7]} 17... Bc6 {[%clk
0:04:13.2]} 18. Nc3 {[%clk 0:04:24]} 18... Ng5 {[%clk 0:04:08]} 19. Bxg5 {[%clk
0:04:19]} 19... Qe5 {[%clk 0:04:00.7]} 20. Bf4 {[%clk 0:04:15]} 20... Qh5 {[%clk
0:03:59.6]} 21. Bg2 {[%clk 0:04:13.6]} 21... Ng4 {[%clk 0:03:55.7]} 22. h3
{[%clk 0:04:11.6]} 22... Bxg2 {[%clk 0:03:49.8]} 23. Kxg2 {[%clk 0:04:11.1]}
23... Ne5 {[%clk 0:03:45.4]} 24. Qd5+ {[%clk 0:04:09.3]} 24... Kh8 {[%clk
0:03:43.8]} 25. g4 {[%clk 0:04:04]} 25... Qh4 {[%clk 0:03:38.8]} 26. Bg3 {[%clk
0:04:03]} 26... Qe7 {[%clk 0:03:37.5]} 27. Rad1 {[%clk 0:03:57.8]} 27... Rbc8
{[%clk 0:03:36]} 28. Bxe5 {[%clk 0:03:52.5]} 28... Bxe5 {[%clk 0:03:34.6]} 29.
Ne4 {[%clk 0:03:47.4]} 29... Rc6 {[%clk 0:03:29.9]} 30. c5 {[%clk 0:03:44.4]}
30... Bxb2 {[%clk 0:03:22.2]} 31. cxd6 {[%clk 0:03:36.6]} 31... Qf8 {[%clk
0:03:16.6]} 32. Rb1 {[%clk 0:03:33.5]} 32... Qg7 {[%clk 0:03:12.2]} 33. Ng5
{[%clk 0:03:27.8]} 33... Rd7 {[%clk 0:03:06.4]} 34. Rfd1 {[%clk 0:03:21.7]}
34... h6 {[%clk 0:03:02.5]} 35. Ne4 {[%clk 0:03:11.6]} 35... Bf6 {[%clk
0:02:51.3]} 36. Rxb7 {[%clk 0:03:08.3]} 36... Rxb7 {[%clk 0:02:50.1]} 37. Qxc6
{[%clk 0:03:07.2]} 37... Rb8 {[%clk 0:02:49]} 38. Qc7 {[%clk 0:03:01.1]} 38...
Rd8 {[%clk 0:02:44.1]} 39. d7 {[%clk 0:02:57.5]} 39... Qg8 {[%clk 0:02:40.6]}
1-0

[Event "Live Chess"]
[Site "Chess.com"]
[Date "2024.06.01"]
[Round "-"]
[White "CCGoodKnightRookie"]
[Black "KeithArkell"]
[Result "0-1"]
[WhiteElo "2235"]
[BlackElo "2458"]
[TimeControl "300"]
[EndTime "13:45:04 PDT"]
[Termination "KeithArkell won by resignation"]

1. d4 {[%clk 0:04:58.9]} 1... e6 {[%clk 0:04:58.8]} 2. Nc3 {[%clk 0:04:58]} 2...
d5 {[%clk 0:04:57.2]} 3. Bf4 {[%clk 0:04:57.1]} 3... Bd6 {[%clk 0:04:55.9]} 4.
e3 {[%clk 0:04:55.9]} 4... Nf6 {[%clk 0:04:53.9]} 5. Bd3 {[%clk 0:04:53.3]} 5...
a6 {[%clk 0:04:51.9]} 6. Nf3 {[%clk 0:04:52.2]} 6... c5 {[%clk 0:04:50.6]} 7.
dxc5 {[%clk 0:04:51.6]} 7... Bxf4 {[%clk 0:04:48.5]} 8. exf4 {[%clk 0:04:50.7]}
8... Qc7 {[%clk 0:04:47.9]} 9. Ne5 {[%clk 0:04:48.2]} 9... Qxc5 {[%clk 0:04:46]}
10. Qf3 {[%clk 0:04:47.2]} 10... Nbd7 {[%clk 0:04:44.6]} 11. O-O-O {[%clk
0:04:43.5]} 11... Nxe5 {[%clk 0:04:42.5]} 12. fxe5 {[%clk 0:04:41.9]} 12... Nd7
{[%clk 0:04:41.8]} 13. Qg3 {[%clk 0:04:41.2]} 13... g6 {[%clk 0:04:40]} 14. f4
{[%clk 0:04:39.6]} 14... b5 {[%clk 0:04:39.1]} 15. h4 {[%clk 0:04:23.2]} 15...
Bb7 {[%clk 0:04:37.7]} 16. h5 {[%clk 0:04:19.6]} 16... O-O-O {[%clk 0:04:36.6]}
17. hxg6 {[%clk 0:04:18.3]} 17... hxg6 {[%clk 0:04:36.3]} 18. Nb1 {[%clk
0:04:05.7]} 18... Nb6 {[%clk 0:04:27]} 19. Nd2 {[%clk 0:04:04]} 19... Nc4 {[%clk
0:04:25]} 20. Nb3 {[%clk 0:03:58]} 20... Qe3+ {[%clk 0:04:22.6]} 21. Qxe3 {[%clk
0:03:55.6]} 21... Nxe3 {[%clk 0:04:22.5]} 22. Rdg1 {[%clk 0:03:48.5]} 22... Rxh1
{[%clk 0:04:20.2]} 23. Rxh1 {[%clk 0:03:47.3]} 23... Nxg2 {[%clk 0:04:19.6]} 24.
Rh7 {[%clk 0:03:45.7]} 24... Rf8 {[%clk 0:04:17.4]} 25. f5 {[%clk 0:03:30.2]}
25... gxf5 {[%clk 0:04:14.6]} 26. Nc5 {[%clk 0:03:25.5]} 26... Nf4 {[%clk
0:04:11.2]} 27. Bf1 {[%clk 0:03:23.3]} 27... Ng6 {[%clk 0:04:09]} 28. a4 {[%clk
0:03:19.9]} 28... bxa4 {[%clk 0:04:07]} 29. Nxa6 {[%clk 0:03:12.8]} 29... Nxe5
{[%clk 0:04:02.2]} 30. Nc5 {[%clk 0:03:11.8]} 30... Bc6 {[%clk 0:04:00.3]} 31.
Ba6+ {[%clk 0:03:07.3]} 31... Kd8 {[%clk 0:03:59.2]} 32. b4 {[%clk 0:03:01.8]}
32... Ke7 {[%clk 0:03:54.6]} 33. b5 {[%clk 0:03:00]} 33... Be8 {[%clk
0:03:51.9]} 34. b6 {[%clk 0:02:54.9]} 34... Bc6 {[%clk 0:03:45.6]} 0-1

[Event "Live Chess"]
[Site "Chess.com"]
[Date "2024.06.01"]
[Round "-"]
[White "chessfiction"]
[Black "Ferrarifan27"]
[Result "1-0"]
[WhiteElo "2374"]
[BlackElo "2058"]
[TimeControl "300"]
[EndTime "13:45:33 PDT"]
[Termination "chessfiction won by resignation"]

1. e4 {[%clk 0:04:56.1]} 1... e5 {[%clk 0:04:59.1]} 2. Nf3 {[%clk 0:04:54.7]}
2... Nc6 {[%clk 0:04:57.3]} 3. Bb5 {[%clk 0:04:54.3]} 3... a6 {[%clk 0:04:55.8]}
4. Ba4 {[%clk 0:04:50.4]} 4... Nf6 {[%clk 0:04:54.4]} 5. Bb3 {[%clk 0:04:49.8]}
5... Bc5 {[%clk 0:04:47]} 6. d3 {[%clk 0:04:48.4]} 6... O-O {[%clk 0:04:41.5]}
7. c3 {[%clk 0:04:47.3]} 7... d6 {[%clk 0:04:38.8]} 8. h3 {[%clk 0:04:45.1]}
8... Bb6 {[%clk 0:04:36.8]} 9. Nbd2 {[%clk 0:04:41.6]} 9... Qe7 {[%clk
0:04:34.3]} 10. Nf1 {[%clk 0:04:40.6]} 10... Be6 {[%clk 0:04:31.8]} 11. Ng3
{[%clk 0:04:39.2]} 11... Bxb3 {[%clk 0:04:25.5]} 12. axb3 {[%clk 0:04:37.6]}
12... Qe6 {[%clk 0:04:24.5]} 13. Nf5 {[%clk 0:04:35.3]} 13... Ne7 {[%clk
0:04:22.8]} 14. g4 {[%clk 0:04:30.1]} 14... Nxf5 {[%clk 0:04:18.2]} 15. gxf5
{[%clk 0:04:28.1]} 15... Qd7 {[%clk 0:04:17.9]} 16. Rg1 {[%clk 0:04:26.9]} 16...
Kh8 {[%clk 0:04:15.3]} 17. Qd2 {[%clk 0:04:21.4]} 17... h6 {[%clk 0:04:11.7]}
18. Rxg7 {[%clk 0:04:19]} 18... Kxg7 {[%clk 0:04:05.7]} 19. Qxh6+ {[%clk
0:04:18.4]} 19... Kg8 {[%clk 0:04:04.7]} 20. Qg5+ {[%clk 0:04:11.7]} 20... Kh7
{[%clk 0:03:59.4]} 21. Qxf6 {[%clk 0:04:10.6]} 21... Qd8 {[%clk 0:03:44.6]} 22.
Qh6+ {[%clk 0:04:07.9]} 22... Kg8 {[%clk 0:03:43.6]} 23. f6 {[%clk 0:04:07.8]}
23... Qxf6 {[%clk 0:03:34]} 24. Qxf6 {[%clk 0:04:07.7]} 1-0